bitfinex-derivatives/quotes_SOLF0:USTF0_20250919
["timestamp","ask_amount","ask_price","bid_price","bid_amount"]
[1758291236307,6.65,242.36,242.29,6.8]
[1758291236905,6.65,242.36,242.31,3.7122]
[1758291237109,101.34,242.38,242.32,6.8]
[1758291237705,101.34,242.38,242.29,2.38586827]
[1758291237706,107.99,242.38,242.33,3.712]
[1758291237909,107.99,242.38,242.34,6.8]
[1758291238105,6.65,242.37,242.33,3.712]
[1758291238500,6.73,242.37,242.31,3.7124]
[1758291240403,3.60666,242.4,242.3,6.8]
[1758291240601,2.87709509,242.39,242.3,6.8]
[1758291240807,104.94666,242.4,242.3,6.8]
[1758291241208,104.94666,242.4,242.34,3.7118]
[1758291241513,111.74666,242.4,242.34,3.7118]
[1758291241713,111.74666,242.4,242.3,6.8]
[1758291241907,10.40666,242.4,242.3,6.8]
[1758291242109,3.60666,242.4,242.34,6.85]
[1758291243402,3.60666,242.4,242.35,3.7116]
[1758291243607,3.60666,242.4,242.33,60.12856827]
[1758291243811,3.60666,242.4,242.37,6.85]
[1758291245712,3.60666,242.4,242.36,3.7114]
[1758291245914,3.60666,242.4,242.37,6.85]
[1758291246518,3.60666,242.4,242.36,3.7114]
[1758291246717,3.60666,242.4,242.37,6.85]
[1758291246913,3.60666,242.4,242.36,3.7114]
[1758291247112,6.8,242.39,242.36,3.7114]
[1758291247309,10.40666,242.4,242.36,10.5614]
[1758291248007,3.60666,242.4,242.36,3.7114]
[1758291248213,6.8,242.39,242.36,3.7114]
[1758291249818,6.8,242.39,242.34,10.5619]
[1758291250007,10.40666,242.4,242.34,10.5619]
[1758291250211,10.40666,242.4,242.3,6.85]
[1758291250508,10.40666,242.4,242.26,6.85]
[1758291250722,6.8,242.38,242.26,6.85]
[1758291251917,0.02606861,242.34,242.26,6.85]
[1758291252417,0.02606861,242.34,242.31,3.7123]
[1758291252816,0.02606861,242.34,242.31,10.5623]
[1758291253016,6.82606861,242.34,242.29,10.5626]
[1758291253209,6.8,242.33,242.29,6.85]
[1758291253412,0.02606861,242.34,242.26,6.85]
[1758291254916,0.02606861,242.34,242.3,10.5624]
[1758291254917,6.82606861,242.34,242.3,10.5624]
[1758291255112,0.02606861,242.34,242.3,3.7124]
[1758291255310,6.8,242.33,242.3,3.7124]
[1758291255715,0.02606861,242.34,242.28,3.7128]
[1758291255914,6.82606861,242.34,242.28,3.7128]
[1758291256318,6.82606861,242.34,242.26,10.5631]
[1758291257016,9.68315909,242.33,242.24,3.7134]
[1758291257218,2.88315909,242.32,242.24,3.7134]
[1758291257417,6.8,242.3,242.24,3.7134]
[1758291258120,6.8,242.3,242.26,6.85]
[1758291258719,6.8,242.34,242.25,6.85]
[1758291258920,2.88363182,242.33,242.25,6.85]
[1758291259119,2.88363182,242.32,242.25,6.85]
[1758291259320,6.8,242.34,242.25,6.85]
[1758291259521,2.88379647,242.33,242.25,6.85]
[1758291259715,6.8,242.34,242.25,10.5631]
[1758291260019,2.88379647,242.33,242.25,10.5631]
[1758291260219,6.8,242.34,242.25,10.5631]
[1758291260423,2.88371,242.33,242.25,10.5631]
[1758291260622,6.8,242.34,242.25,10.5631]
[1758291260818,2.880731,242.33,242.25,10.5631]
[1758291261017,6.8,242.34,242.25,10.5631]
[1758291261213,2.880731,242.33,242.25,10.5631]
[1758291261417,6.8,242.32,242.25,3.7131]
[1758291264025,6.8,242.32,242.24,6.85]
[1758291267825,3.7124,242.31,242.21,1.52646639]
[1758291268129,6.8,242.3,242.2,8.37646639]
[1758291268725,6.99,242.28,242.19,6.81]
[1758291268925,8.51646639,242.28,242.19,6.81]
[1758291269930,8.51646639,242.28,242.19,10.5241]
[1758291271332,3.713,242.27,242.19,10.5241]
[1758291272435,3.713,242.27,242.19,6.81]
[1758291273634,6.99,242.28,242.19,6.81]
[1758291275135,12.22866639,242.32,242.2,6.81]
[1758291275330,2.87504524,242.31,242.2,6.81]
[1758291275532,12.22866639,242.32,242.2,6.81]
[1758291275731,2.87504439,242.31,242.22,1.52646639]
[1758291276032,6.99,242.32,242.23,6.81]
[1758291276933,6.99,242.32,242.23,3.7134]
[1758291277134,6.99,242.32,242.24,6.81]
[1758291280139,0.02600873,242.3,242.24,6.81]
[1758291280340,6.99,242.29,242.22,1.52646639]
[1758291280539,6.99,242.29,242.21,3.7139]
[1758291282845,11.60566631,242.48,242.3,57.7496]
[1758291283045,6.99,242.44,242.36,6.81]
[1758291283344,10.59666,242.4,242.36,6.81]
[1758291283942,3.60666,242.4,242.34,6.81]
[1758291284644,3.60666,242.4,242.38,6.81]
[1758291285746,3.60666,242.4,242.39,6.81]
[1758291286842,3.60666,242.4,242.37,0.02607196]
[1758291287043,3.60666,242.4,242.38,6.81]
[1758291288143,3.60666,242.4,242.37,0.02607196]
[1758291288648,3.60666,242.4,242.38,6.81]
[1758291288844,3.60666,242.4,242.39,3.7111]
[1758291289047,3.60666,242.4,242.39,10.5211]
[1758291289344,3.60666,242.4,242.39,6.81]
[1758291290346,3.60666,242.4,242.37,0.02607196]
[1758291290947,10.59666,242.4,242.37,0.02607196]
[1758291291746,3.60666,242.4,242.37,0.02607196]
[1758291291953,6.99,242.39,242.37,0.02607196]
[1758291292348,3.60666,242.4,242.37,0.02607196]
[1758291292553,3.60666,242.4,242.37,6.83607196]
[1758291292949,3.60666,242.4,242.37,0.02607196]
[1758291293150,10.59666,242.4,242.37,0.02607196]
[1758291294443,6.99,242.39,242.37,0.02607196]
[1758291298353,6.98,242.39,242.37,0.02607196]
[1758291300550,3.60666,242.4,242.37,0.02607196]
[1758291300751,10.58666,242.4,242.37,0.02607196]
[1758291301151,6.98,242.39,242.37,0.02607196]
[1758291304359,3.60666,242.4,242.37,0.02607196]
[1758291304560,6.98,242.39,242.37,0.02607196]
[1758291305259,3.60666,242.4,242.37,0.02607196]
[1758291305554,6.98,242.39,242.37,0.02607196]
[1758291305759,3.60666,242.4,242.37,0.02607196]
[1758291305958,6.98,242.39,242.37,0.02607196]
[1758291306558,3.60666,242.4,242.37,0.02607196]
[1758291307258,6.98,242.39,242.37,0.02607196]
[1758291308463,3.60666,242.4,242.37,0.02607196]
[1758291308857,6.98,242.39,242.37,0.02607196]
[1758291309260,10.6912,242.39,242.37,0.02607196]
[1758291309465,8.50646639,242.38,242.37,0.02607196]
[1758291311163,3.7119,242.34,242.24,15.79323394]
[1758291311364,6.98,242.33,242.24,15.79323394]
[1758291311664,6.98,242.33,242.24,3.7133]
[1758291311864,6.98,242.33,242.25,3.7131]
[1758291312263,6.98,242.33,242.22,6.69]
[1758291313168,6.98,242.33,242.27,5.23926639]
[1758291315458,6.98,242.33,242.25,10.4033]
[1758291315669,6.98,242.32,242.25,11.92976639]
[1758291316265,6.98,242.35,242.25,1.52646639]
[1758291317370,10.6919,242.35,242.25,1.52646639]
[1758291317766,6.98,242.35,242.25,1.52646639]
[1758291318465,6.98,242.35,242.28,1.52646639]
[1758291321671,6.98,242.39,242.31,8.21646639]
[1758291321870,3.60666,242.4,242.34,1.52646639]
[1758291322268,7.31776,242.4,242.34,1.52646639]
[1758291322568,6.98,242.39,242.34,1.52646639]
[1758291322769,6.98,242.38,242.34,1.52646639]
[1758291322965,3.60666,242.4,242.31,1.52646639]
[1758291323271,9.83408763,242.39,242.31,1.52646639]
[1758291323572,10.6911,242.39,242.31,1.52646639]
[1758291323869,10.6911,242.39,242.3,3.7124]
[1758291324073,6.98,242.37,242.3,3.7124]
[1758291325073,0.02614339,242.36,242.3,3.7124]
[1758291325669,6.98,242.35,242.28,2.38340618]
[1758291326773,6.98,242.35,242.28,6.09620618]
[1758291326974,6.98,242.35,242.28,3.7128]
[1758291327768,10.6919,242.35,242.27,6.69]
[1758291328873,2.8575468,242.34,242.18,19.70478899]
[1758291329172,10.8723,242.32,242.19,3.714]
[1758291329468,10.8723,242.32,242.16,2.38340618]
[1758291329469,7.16,242.32,242.2,7.04]
[1758291330168,7.16,242.32,242.21,3.7138]
[1758291330373,7.16,242.32,242.22,7.04]
[1758291330973,10.8717,242.36,242.22,7.04]
[1758291331277,10.8717,242.36,242.26,3.713]
[1758291331573,3.7119,242.34,242.26,10.753]
[1758291331778,7.16,242.33,242.26,7.04]
[1758291334377,7.16,242.33,242.27,3.7128]
[1758291336277,7.16,242.33,242.26,7.04]
[1758291336575,7.16,242.38,242.26,7.04]
[1758291336876,2.85698397,242.37,242.26,7.04]
[1758291337076,7.16,242.38,242.26,7.04]
[1758291337277,2.8572758,242.37,242.26,7.04]
[1758291337473,7.16,242.38,242.26,7.04]
[1758291337772,6.5687758,242.37,242.29,3.7125]
[1758291337978,7.16,242.36,242.26,7.04]
[1758291338576,10.8717,242.36,242.28,3.7127]
[1758291339574,7.16,242.36,242.3,3.7125]
[1758291339975,7.16,242.36,242.26,7.04]
[1758291340779,10.8717,242.36,242.28,3.7128]
[1758291340977,10.8717,242.36,242.26,7.04]
[1758291340978,7.16,242.36,242.26,7.04]
[1758291341176,7.16,242.34,242.21,7.04]
[1758291342078,0.0260193,242.3,242.21,7.04]
[1758291342779,7.1860193,242.3,242.21,7.04]
[1758291343484,0.0260193,242.3,242.21,7.04]
[1758291343879,0.0260193,242.3,242.27,3.7128]
[1758291344084,0.0260193,242.3,242.28,7.04]
[1758291344586,0.0260193,242.3,242.29,10.7526]
[1758291348682,0.0260193,242.3,242.29,7.04]
[1758291348984,0.0260193,242.3,242.23,7.04]
[1758291349686,0.0260193,242.3,242.28,10.7527]
[1758291349886,0.0260193,242.3,242.28,3.7127]
[1758291350080,0.0260193,242.3,242.29,7.04]
[1758291355184,0.0260193,242.3,242.24,7.04]
[1758291356792,0.0260193,242.3,242.25,3.7132]
[1758291356984,0.0260193,242.3,242.26,7.04]
[1758291357792,6.92,242.29,242.25,3.7132]
[1758291357996,6.92,242.29,242.25,10.4232]
[1758291358593,6.92,242.29,242.26,7.1]
[1758291359492,0.0260193,242.3,242.28,7.1]
[1758291360291,0.0260193,242.3,242.29,7.1]
[1758291363801,0.0260193,242.3,242.28,3.7127]
[1758291363802,0.0260193,242.3,242.28,10.8127]
[1758291364195,0.0260193,242.3,242.29,7.1]
[1758291369203,0.0260193,242.3,242.21,7.1]
[1758291371007,0.0260193,242.3,242.25,3.7133]
[1758291371304,0.0260193,242.3,242.26,7.1]
[1758291372306,0.0260193,242.3,242.29,7.1]
[1758291374007,0.0260193,242.3,242.25,3.7132]
[1758291374202,0.0260193,242.3,242.23,7.1]
[1758291375907,0.0260193,242.3,242.27,7.1]
[1758291376501,2.86839719,242.29,242.23,7.1]
[1758291376709,0.0260193,242.3,242.23,7.1]
[1758291376908,2.86834884,242.29,242.23,7.1]
[1758291377109,0.0260193,242.3,242.23,7.1]
[1758291377410,2.86830285,242.29,242.23,7.1]
[1758291377609,0.0260193,242.3,242.22,7.1]
[1758291379004,0.0260193,242.3,242.28,7.1]
[1758291380108,7.1960193,242.3,242.26,7.1]
[1758291380412,7.1960193,242.3,242.18,178.71444414]
[1758291380413,7.17,242.29,242.2,7.1]
[1758291381010,7.17,242.29,242.24,3.7133]
[1758291381313,0.0260193,242.3,242.2,7.1]
[1758291382511,0.0260193,242.3,242.26,3.713]
[1758291382715,0.0260193,242.3,242.22,7.1]
[1758291382916,0.0260193,242.3,242.25,57.7616]
[1758291383216,0.0260193,242.3,242.26,7.1]
[1758291383915,0.0260193,242.3,242.29,7.1]
[1758291387723,1.52577632,242.38,242.29,7.1]
[1758291387923,3.60666,242.4,242.31,57.748]
[1758291388122,3.60666,242.4,242.34,7.1]
[1758291388327,3.60666,242.4,242.39,10.4211]
[1758291390825,6.7,242.5,242.43,6.71]
[1758291390826,8.22577632,242.5,242.43,6.71]
[1758291391026,2.86206645,242.49,242.37,6.71]
[1758291391226,9.56206645,242.48,242.37,6.71]
[1758291391525,4.38784277,242.47,242.38,3.7111]
[1758291391723,1.52577632,242.44,242.37,6.71]
[1758291391927,2.86206645,242.43,242.37,6.71]
[1758291392128,1.52577632,242.44,242.37,6.71]
[1758291393525,1.52577632,242.44,242.37,10.4213]
[1758291398135,6.7,242.45,242.38,3.73717662]
[1758291398435,6.7,242.5,242.39,8.23577632]
[1758291399126,6.7,242.5,242.44,10.4203]
[1758291399525,5.23497632,242.52,242.44,10.4203]
[1758291399724,2.85538692,242.51,242.44,10.4203]
[1758291399927,2.85538692,242.5,242.44,10.4203]
[1758291400125,6.7,242.54,242.47,6.71]
[1758291400324,401.14390091,242.6,242.47,6.71]
[1758291400325,6.7,242.58,242.47,6.71]
[1758291400535,2.85329067,242.57,242.47,6.71]
[1758291400728,6.7,242.58,242.47,6.71]
[1758291400932,2.85274222,242.57,242.47,6.71]
[1758291401128,6.7,242.58,242.47,6.71]
[1758291401332,6.7,242.58,242.47,10.4198]
[1758291401532,6.7,242.58,242.47,6.71]
[1758291402835,6.7,242.58,242.5,3.7093]
[1758291404039,6.7,242.55,242.47,6.71]
[1758291404938,10.4087,242.55,242.47,6.71]
[1758291405641,10.4087,242.55,242.47,10.4197]
[1758291406336,3.7082,242.58,242.49,3.7095]
[1758291406636,5.23397632,242.58,242.5,6.71]
[1758291406836,1.52577632,242.58,242.5,6.71]
[1758291407037,6.7,242.57,242.5,6.71]
[1758291407237,3.7085,242.56,242.5,6.71]
[1758291407437,3.7085,242.56,242.47,3.7098]
[1758291407841,3.7085,242.56,242.48,3.7096]
[1758291408039,5.23427632,242.56,242.48,3.7096]
[1758291409241,5.23427632,242.56,242.49,6.71]
[1758291412642,3.7088,242.55,242.49,6.71]
[1758291413245,5.23497632,242.52,242.45,6.71]
[1758291413543,11.93497632,242.52,242.45,6.71]
[1758291415241,8.22577632,242.52,242.45,6.71]
[1758291415446,8.22577632,242.49,242.41,6.71]
[1758291415645,11.93547632,242.49,242.41,6.71]
[1758291415842,8.22577632,242.49,242.41,6.71]
[1758291416536,10.4102,242.46,242.41,6.71]
[1758291416942,6.7,242.45,242.41,6.71]
[1758291417243,6.7,242.45,242.36,3.7115]
[1758291417244,10.4103,242.45,242.36,6.71]
[1758291418546,5.23567632,242.48,242.36,6.71]
[1758291418942,5.23567632,242.48,242.39,3.7111]
[1758291419143,5.23567632,242.48,242.4,7.18]
[1758291419550,3.7099,242.48,242.4,7.18]
[1758291420548,6.65,242.45,242.36,7.18]
[1758291420747,1.52577632,242.42,242.36,7.18]
[1758291421054,8.17577632,242.42,242.3,7.18]
[1758291421251,1.52577632,242.42,242.3,7.18]
[1758291421552,1.52577632,242.42,242.33,7.18]
[1758291422052,1.52577632,242.42,242.35,0.02609952]
[1758291422450,6.65,242.46,242.35,0.02609952]
[1758291422451,1.52577632,242.45,242.36,7.18]
[1758291423148,159.0465,242.49,242.35,0.02609952]
[1758291423149,1.52577632,242.42,242.35,0.02609952]
[1758291423343,6.65,242.41,242.35,0.02609952]
[1758291423544,57.7162,242.45,242.35,0.02609952]
[1758291423545,6.65,242.37,242.35,0.02609952]
[1758291423942,1.52577632,242.39,242.35,0.02609952]
[1758291424146,8.17577632,242.36,242.35,0.02609952]
[1758291424345,6.65,242.36,242.35,0.02609952]
[1758291425648,8.17577632,242.43,242.35,0.02609952]
[1758291426155,3.7107,242.42,242.35,0.02609952]
[1758291426554,6.65,242.39,242.35,0.02609952]
[1758291428950,5.23647632,242.42,242.35,0.02609952]
[1758291429552,3.7109,242.41,242.35,0.02609952]
[1758291429747,6.65,242.41,242.35,0.02609952]
[1758291429954,6.65,242.36,242.35,0.02609952]
[1758291430552,8.17577632,242.36,242.2,15.58]
[1758291430755,8.17577632,242.36,242.22,1.52577632]
[1758291430949,8.17577632,242.36,242.23,7.18]
[1758291431757,6.65,242.36,242.23,7.18]
[1758291431951,3.7123,242.32,242.23,7.18]
[1758291432352,6.65,242.34,242.23,7.18]
[1758291433158,6.65,242.34,242.23,3.7135]
[1758291433358,6.65,242.34,242.24,7.18]
[1758291433857,3.7121,242.33,242.24,7.18]
[1758291435057,6.65,242.34,242.24,7.18]
[1758291435350,3.7117,242.35,242.27,7.18]
[1758291435750,0.0260854,242.31,242.27,7.18]
[1758291436157,0.0260854,242.31,242.26,1.52577632]
[1758291436359,0.0260854,242.31,242.27,7.18]
[1758291436557,0.0260854,242.31,242.26,1.52577632]
[1758291436751,0.0260854,242.31,242.27,7.18]
[1758291437361,0.0260854,242.31,242.26,5.23887632]
[1758291437654,0.0260854,242.31,242.27,7.18]
[1758291438052,0.0260854,242.31,242.26,5.23887632]
[1758291438761,0.0260854,242.31,242.27,3.7128]
[1758291438957,0.0260854,242.31,242.28,7.18]
[1758291439355,0.0260854,242.31,242.27,3.7128]
[1758291439951,0.0260854,242.31,242.28,7.18]
[1758291440362,0.0260854,242.31,242.27,3.7128]
[1758291441057,0.0260854,242.31,242.27,7.18]
[1758291441460,0.0260854,242.31,242.26,1.52577632]
[1758291441658,0.0260854,242.31,242.28,7.18]
[1758291441860,0.0260854,242.31,242.27,3.7128]
[1758291442253,0.0260854,242.31,242.28,7.18]
[1758291442663,0.0260854,242.31,242.27,3.7128]
[1758291442857,0.0260854,242.31,242.26,1.52577632]
[1758291442858,0.0260854,242.31,242.29,7.18]
[1758291443165,0.0260854,242.31,242.3,7.18]
[1758291444756,0.0260854,242.31,242.26,6.09662756]
[1758291444957,0.0260854,242.31,242.2,12.45948925]
[1758291445154,0.0260854,242.31,242.13,311.82]
[1758291445155,3.713,242.27,242.21,7.18]
[1758291445360,6.6760854,242.31,242.21,7.18]
[1758291445555,6.65,242.31,242.21,7.18]
[1758291446964,6.65,242.31,242.19,3.7141]
[1758291447262,3.7127,242.29,242.21,7.18]
[1758291448164,6.65,242.31,242.22,3.7137]
[1758291448864,0.02598335,242.29,242.22,3.7137]
[1758291449065,7.2,242.28,242.21,7.18]
[1758291449964,10.9129,242.28,242.21,7.18]
[1758291451765,7.2,242.28,242.21,7.18]
[1758291452458,7.2,242.28,242.22,3.7137]
[1758291452765,7.2,242.28,242.21,7.18]
[1758291453069,0.02598335,242.29,242.23,3.7134]
[1758291453868,0.02598335,242.29,242.23,10.5634]
[1758291454262,0.02598335,242.29,242.23,6.85]
[1758291458472,3.73878335,242.29,242.23,6.85]
[1758291459572,7.2,242.27,242.19,6.85]
[1758291459969,7.2,242.27,242.19,10.5642]
[1758291460872,10.9131,242.27,242.19,10.5642]
[1758291461669,7.2,242.27,242.2,3.7139]
[1758291461870,7.2,242.27,242.21,6.85]
[1758291464173,10.9131,242.27,242.21,6.85]
[1758291464672,10.9131,242.27,242.2,10.5639]
[1758291465680,10.9131,242.27,242.2,6.85]
[1758291465879,3.7132,242.26,242.2,6.85]
[1758291466177,3.7132,242.26,242.16,6.85]
[1758291466178,2.38362756,242.26,242.16,6.85]
[1758291466377,3.7138,242.22,242.16,6.85]
[1758291466683,7.2,242.25,242.12,6.85]
[1758291466981,2.38362756,242.26,242.12,6.85]
[1758291466982,7.2,242.23,242.12,6.85]
[1758291467175,7.2,242.23,242.13,3.715]
[1758291467176,3.7141,242.2,242.13,3.715]
[1758291467980,10.9137,242.23,242.14,3.7148]
[1758291468381,3.7138,242.22,242.14,3.7148]
[1758291469083,7.2,242.23,242.14,3.7148]
[1758291469581,7.2,242.23,242.15,6.85]
[1758291470084,0.02598066,242.21,242.15,6.85]
[1758291471181,7.2,242.2,242.07,6.85]
[1758291471778,3.7144,242.18,242.09,3.7156]
[1758291472081,7.2,242.2,242.1,6.85]
[1758291472879,7.2,242.2,242.11,3.7153]
[1758291473274,3.7134,242.25,242.1,6.85]
[1758291473581,2.87231931,242.24,242.13,6.85]
[1758291473780,2.87231931,242.23,242.13,6.85]
[1758291473981,7.2,242.25,242.13,6.85]
[1758291474182,2.87211513,242.24,242.13,6.85]
[1758291474475,2.87211513,242.23,242.13,6.85]
[1758291474675,3.7135,242.24,242.13,6.85]
[1758291474885,2.87222807,242.23,242.13,6.85]
[1758291475084,7.2,242.25,242.13,6.85]
[1758291475289,2.87222879,242.24,242.13,6.85]
[1758291475587,7.2,242.25,242.13,6.85]
[1758291475878,7.2,242.29,242.15,6.85]
[1758291476082,2.87181289,242.28,242.15,6.85]
[1758291476284,2.87181289,242.27,242.19,6.85]
[1758291476479,3.7129,242.28,242.19,6.85]
[1758291476686,2.8719264,242.27,242.19,6.85]
[1758291476986,7.2,242.29,242.19,6.85]
[1758291477283,2.8719264,242.28,242.19,6.85]
[1758291477482,2.8719264,242.27,242.19,6.85]
[1758291477683,7.2,242.29,242.19,6.85]
[1758291477983,2.87194794,242.28,242.19,6.85]
[1758291478183,2.87194794,242.27,242.19,6.85]
[1758291478385,7.14,242.26,242.19,6.85]
[1758291478787,10.8532,242.26,242.19,6.85]
[1758291479084,7.14,242.26,242.12,7.07]
[1758291479382,7.14,242.24,242.12,7.07]
[1758291479581,7.14,242.21,242.12,7.07]
[1758291479783,64.9121,242.21,242.02,50.27]
[1758291479982,64.9121,242.21,242.03,7.07]
[1758291479983,7.14,242.19,242.03,7.07]
[1758291480287,3.7151,242.13,242.04,7.07]
[1758291480583,7.14,242.16,242.04,7.07]
[1758291480786,7.14,242.13,242.04,7.07]
[1758291480989,7.14,242.13,242.04,19.58727441]
[1758291481782,10.8551,242.13,242.04,19.58727441]
[1758291481985,7.14,242.19,242.05,7.07]
[1758291482482,7.14,242.19,242.08,7.07]
[1758291483186,7.14,242.24,242.08,7.07]
[1758291483385,2.87087835,242.23,242.08,7.07]
[1758291483696,2.87087835,242.22,242.08,7.07]
[1758291483990,3.714,242.21,242.12,3.7152]
[1758291484184,7.14,242.21,242.12,3.7152]
[1758291484389,7.14,242.21,242.11,7.07]
[1758291485889,3.7143,242.19,242.11,7.07]
[1758291489091,3.7145,242.17,242.11,7.07]
[1758291490198,10.8548,242.15,242.11,7.07]
[1758291490397,10.8548,242.15,242.06,10.7862]
[1758291490799,7.14,242.21,242.08,7.07]
[1758291490996,2.87186362,242.2,242.08,7.07]
[1758291491197,7.14,242.21,242.08,64.8729]
[1758291491401,7.14,242.25,242.09,7.07]
[1758291491603,2.87159758,242.24,242.09,7.07]
[1758291491802,2.87159758,242.23,242.09,7.07]
[1758291492103,2.87159758,242.22,242.09,7.07]
[1758291492404,7.14,242.25,242.09,7.07]
[1758291492701,2.87161406,242.24,242.09,7.07]
[1758291492893,3.7136,242.23,242.16,7.07]
[1758291495003,7.14,242.25,242.16,7.07]
[1758291495805,10.8534,242.25,242.16,7.07]
[1758291496005,7.14,242.25,242.16,7.07]
[1758291497203,7.14,242.23,242.12,7.07]
[1758291497803,2.38362756,242.26,242.12,7.07]
[1758291498005,2.87297687,242.25,242.12,7.07]
[1758291498302,7.14,242.28,242.12,7.07]
[1758291498501,6.58602132,242.27,242.13,7.07]
[1758291498699,2.87292132,242.26,242.13,7.07]
[1758291498906,0.02603678,242.22,242.18,3.7142]
[1758291499208,0.02603678,242.22,242.19,7.07]
[1758291499608,0.02603678,242.22,242.14,10.7849]
[1758291499908,0.02603678,242.22,242.15,7.07]
[1758291501709,3.7139,242.21,242.15,7.07]
[1758291501904,0.02603678,242.22,242.15,7.07]
[1758291502108,3.7143,242.19,242.1,7.07]
[1758291502310,0.02603678,242.22,242.1,7.07]
[1758291502610,7.14,242.23,242.1,7.07]
[1758291502907,2.8982315,242.22,242.1,7.07]
[1758291503210,7.14,242.23,242.1,7.07]
[1758291503211,2.89871913,242.21,242.1,7.07]
[1758291503410,7.14,242.23,242.1,7.07]
[1758291503614,2.89895924,242.22,242.1,7.07]
[1758291503911,3.7143,242.19,242.12,7.07]
[1758291504602,7.14,242.19,242.12,7.07]
[1758291504908,7.14,242.19,242.05,7.07]
[1758291505500,0.02608137,242.14,242.08,7.07]
[1758291506400,0.02608137,242.14,242.08,10.7858]
[1758291506603,0.02608137,242.14,242.09,7.07]
[1758291507109,0.02608137,242.14,242.05,7.07]
[1758291507505,0.02608137,242.14,242.08,3.7159]
[1758291507711,0.02608137,242.14,242.04,1.52817327]
[1758291507712,0.02608137,242.14,242.05,7.07]
[1758291508310,0.02608137,242.14,242.09,6.65]
[1758291508509,0.02608137,242.14,242.04,1.52817327]
[1758291508808,0.02608137,242.14,242.12,6.65]
[1758291509213,0.02608137,242.14,242.13,6.65]
[1758291509607,0.02608137,242.14,242.05,6.65]
[1758291509805,0.02608137,242.14,242.04,113.55116083]
[1758291509806,0.02608137,242.14,242.08,6.65]
[1758291510516,0.02608137,242.14,242.04,12.11116083]
[1758291510517,0.02608137,242.14,242.06,6.65]
[1758291511818,0.02608137,242.14,242.09,3.7157]
[1758291512019,3.74098137,242.14,242.1,6.65]
[1758291512615,3.7154,242.11,242.04,12.21874268]
[1758291512919,3.7154,242.11,242.02,3.7168]
[1758291513413,7.2,242.18,242.04,57.8124]
[1758291513619,2.90264146,242.17,242.07,6.65]
[1758291513920,7.2,242.18,242.11,6.65]
[1758291514121,2.90212614,242.17,242.11,6.65]
[1758291514414,7.2,242.18,242.11,6.65]
[1758291514612,2.90231407,242.17,242.11,6.65]
[1758291514811,3.7145,242.17,242.11,6.65]
[1758291515519,2.9025395,242.16,242.11,6.65]
[1758291515720,3.7142,242.2,242.1,6.65]
[1758291515916,2.9024191,242.19,242.1,6.65]
[1758291516116,3.7142,242.2,242.1,6.65]
[1758291516117,2.9024191,242.18,242.1,6.65]
[1758291516321,3.7142,242.2,242.11,3.7153]
[1758291516518,2.90221228,242.19,242.11,3.7153]
[1758291516720,2.90221228,242.18,242.11,3.7153]
[1758291516921,3.7142,242.2,242.11,3.7153]
[1758291517218,0.02601795,242.17,242.11,3.7153]
[1758291517423,0.02601795,242.17,242.13,3.7151]
[1758291517821,0.02601795,242.17,242.14,6.65]
[1758291518015,0.02601795,242.17,242.13,3.7151]